[Event "Faroes Open 2018"]
[Site "Sandavagur"]
[Date "2018.07.14"]
[Round "9"]
[White "Greenfeld, Alon"]
[Black "Nakar, Eylon"]
[Result "1-0"]
[WhiteElo "2496"]
[BlackElo "2462"]
[Annotator "RC"]
[PlyCount "41"]
[EventDate "2018.07.07"]
[EventType "swiss"]
[EventCountry "FAI"]
[SourceTitle "playchess.com"]
[Source "ChessBase"]
[SourceQuality "1"]
[TimeControl "40/5400+30:900+30"]

1. d4 {[%emt 0:00:25]} Nf6 {[%emt 0:00:00]} 2. c4 {[%emt 0:00:18]} e6 {[%emt 0:00:00]} 3. g3 {[%emt 0:02:09]} d5 {[%emt 0:00:04]} 4. Bg2 {[%emt 0:00:30]} Bb4+ {[%emt 0:00:18]} 5. Nd2 {[%emt 0:02:46]} O-O {[%emt 0:01:17]} 6. Ngf3 {[%emt 0:01:53]} b6 {[%emt 0:00:57]} 7. O-O {[%emt 0:00:59]} Bb7 {[%emt 0:05:25]} 8. Ne5 {[%emt 0:05:06]} Re8 {[%emt 0:27:18]} 9. Ndf3 {[%emt 0:16:15]} Bd6 {[%emt 0:22:21]} 10. Ng5 {[%emt 0:05:42]} Rf8 {[%emt 0:02:42]} 11. e4 {[%emt 0:07:02]} dxe4 {[%emt 0:19:07]} 12. Qe2 {[%emt 0:03:12]} Nbd7 {[%emt 0:00:51]} 13. Bf4 {[%emt 0:05:27]} h6 {[%emt 0:00:40]} 14. Nxe4 {[%emt 0:01:04]} Bxe4 {[%emt 0:02:10]} 15. Bxe4 {[%emt 0:00:14]} Bxe5 {[%emt 0:00:46]} 16. dxe5 {[%emt 0:04:50]} Nxe4 {[%emt 0:00:02]} 17. Qxe4 {[%emt 0:00:11]} Nc5 {[%emt 0:00:01]} 18. Qc6 {[%emt 0:00:24]} Qd4 {[%emt 0:01:32]} 19. b3 {[%emt 0:05:41]} Nd3 {[%emt 0:05:10]} 20. Rad1 {[%emt 0:01:09]} Rad8 {[%emt 0:01:39]} 21. h4 {[%emt 0:15:36]} 1-0

[Event "Faroes Open 2018"]
[Site "Sandavagur"]
[Date "2018.07.14"]
[Round "9"]
[White "Kristiansen, Jens"]
[Black "Simonsen, Hans Kristian"]
[Result "1-0"]
[ECO "D43"]
[WhiteElo "2380"]
[BlackElo "2150"]
[Annotator "NA"]
[PlyCount "37"]
[EventDate "2018.07.07"]
[EventType "swiss"]
[EventCountry "FAI"]
[SourceTitle "playchess.com"]
[Source "ChessBase"]
[SourceQuality "1"]
[TimeControl "40/5400+30:900+30"]

1. d4 {[%emt 0:00:00]} d5 {[%emt 0:00:00]} 2. c4 {[%emt 0:00:00]} c6 {[%emt 0:00:00]} 3. Nf3 {[%emt 0:00:00]} Nf6 {[%emt 0:00:00]} 4. Nc3 {[%emt 0:00:00]} e6 {[%emt 0:00:08]} 5. g3 {[%emt 0:00:18]} b6 {[%emt 0:01:06]} 6. Bg2 {[%emt 0:01:53]} Bb7 {[%emt 0:00:31]} 7. O-O {[%emt 0:00:28]} Be7 {[%emt 0:00:21]} 8. b3 {[%emt 0:02:21]} O-O {[%emt 0:00:27]} 9. Qc2 {[%emt 0:01:34]} dxc4 {[%emt 0:03:04]} 10. bxc4 {[%emt 0:00:10]} c5 {[%emt 0:00:04]} 11. d5 {[%emt 0:14:15]} exd5 {[%emt 0:00:23]} 12. cxd5 {[%emt 0:00:07]} b5 {[%emt 0:02:06]} 13. Nxb5 {[%emt 0:02:57]} Nxd5 {[%emt 0:00:10]} 14. Rd1 {[%emt 0:08:09]} Qa5 {[%emt 0:00:12]} 15. Nd6 {[%emt 0:05:49]} Bc6 {[%emt 0:07:45]} 16. Ng5 {[%emt 0:10:26]} Bxg5 {[%emt 0:03:36]} 17. Bxg5 {[%emt 0:00:20]} Ba4 {[%emt 0:07:06]} 18. Qd2 {[%emt 0:01:33]} Qxd2 {[%emt 0:02:55]} 19. Rxd2 {[%emt 0:00:52]} 1-0

[Event "Faroes Open 2018"]
[Site "Sandavagur"]
[Date "2018.07.14"]
[Round "9"]
[White "Nielsen, Torkil"]
[Black "Jotic, Vladimir"]
[Result "0-1"]
[ECO "B06"]
[WhiteElo "2115"]
[BlackElo "2387"]
[Annotator "ChessBase"]
[PlyCount "70"]
[EventDate "2018.07.07"]
[EventType "swiss"]
[EventCountry "FAI"]
[SourceTitle "playchess.com"]
[Source "ChessBase"]
[SourceQuality "1"]
[TimeControl "40/5400+30:900+30"]

1. e4 {[%emt 0:00:00]} g6 {[%emt 0:04:20]} 2. d4 {[%emt 0:00:19]} Bg7 {[%emt 0:00:01]} 3. Be3 {[%emt 0:01:01]} c6 {[%emt 0:05:26]} 4. c3 {[%emt 0:04:30]} d5 {[%emt 0:00:48]} 5. e5 {[%emt 0:01:08]} Nh6 {[%emt 0:00:18]} 6. f4 {[%emt 0:06:30]} Qb6 {[%emt 0:10:03]} 7. Qb3 {[%emt 0:03:57]} f6 {[%emt 0:02:55]} 8. Nf3 {[%emt 0:02:02]} O-O {[%emt 0:10:17]} 9. h3 {[%emt 0:09:17]} fxe5 {[%emt 0:02:54]} 10. Nxe5 {[%emt 0:06:57]} Nf5 {[%emt 0:03:11]} 11. Bf2 {[%emt 0:03:16]} Nd6 {[%emt 0:00:35]} 12. g3 {[%emt 0:08:44]} g5 {[%emt 0:06:43]} 13. Qxb6 {[%emt 0:13:13]} axb6 {[%emt 0:00:28]} 14. fxg5 {[%emt 0:00:44]} Bxe5 {[%emt 0:02:05]} 15. dxe5 {[%emt 0:00:11]} Ne4 {[%emt 0:00:03]} 16. Rh2 {[%emt 0:04:02]} Nd7 {[%emt 0:03:22]} 17. h4 {[%emt 0:06:27]} Nxe5 {[%emt 0:00:54]} 18. Be2 {[%emt 0:00:34]} Bg4 {[%emt 0:15:57]} 19. Bd4 {[%emt 0:06:51]} Bxe2 {[%emt 0:05:04]} 20. Bxe5 {[%emt 0:01:28]} Ba6 {[%emt 0:00:18]} 21. Nd2 {[%emt 0:04:32]} Nc5 {[%emt 0:00:54]} 22. Bc7 {[%emt 0:02:37]} Nd3+ {[%emt 0:01:38]} 23. Kd1 {[%emt 0:02:10]} Nxb2+ {[%emt 0:02:07]} 24. Kc2 {[%emt 0:00:07]} Nd3 {[%emt 0:00:07]} 25. Bxb6 {[%emt 0:02:17]} c5 26. Nb3 Rac8 27. Rd1 Rc6 28. Bxc5 Nxc5 29. Rxd5 Na4 30. Rd7 Rxc3+ 31. Kd2 Rfc8 32. Rh1 Rc2+ 33. Ke3 Nb6 34. Rd4 e5 35. Rg4 Re2+ 0-1

[Event "Faroes Open 2018"]
[Site "Sandavagur"]
[Date "2018.07.14"]
[Round "9"]
[White "Spiesberger, Gerhard"]
[Black "Haubro, Martin"]
[Result "0-1"]
[ECO "B24"]
[WhiteElo "2058"]
[BlackElo "2373"]
[Annotator "NA"]
[PlyCount "116"]
[EventDate "2018.07.07"]
[EventType "swiss"]
[EventCountry "FAI"]
[SourceTitle "playchess.com"]
[Source "ChessBase"]
[SourceQuality "1"]
[TimeControl "40/5400+30:900+30"]

1. e4 {[%emt 0:00:00]} c5 {[%emt 0:00:00]} 2. Nc3 {[%emt 0:00:31]} Nc6 {[%emt 0:00:00]} 3. g3 {[%emt 0:00:19]} g6 {[%emt 0:00:06]} 4. Bg2 {[%emt 0:00:09]} Bg7 {[%emt 0:00:06]} 5. d3 {[%emt 0:00:33]} e6 {[%emt 0:00:26]} 6. Nge2 {[%emt 0:01:50]} Nge7 {[%emt 0:01:32]} 7. O-O {[%emt 0:00:33]} O-O {[%emt 0:00:57]} 8. Bf4 {[%emt 0:01:50]} d6 {[%emt 0:05:11]} 9. Qd2 {[%emt 0:01:54]} Re8 {[%emt 0:12:33]} 10. Bh6 {[%emt 0:09:44]} Bh8 {[%emt 0:00:25]} 11. Nd1 {[%emt 0:05:44]} b5 {[%emt 0:01:16]} 12. c3 {[%emt 0:00:42]} d5 {[%emt 0:04:49]} 13. exd5 {[%emt 0:04:41]} exd5 {[%emt 0:05:42]} 14. d4 {[%emt 0:01:04]} cxd4 {[%emt 0:10:28]} 15. Nxd4 {[%emt 0:01:06]} Nxd4 {[%emt 0:00:11]} 16. cxd4 {[%emt 0:00:37]} Nf5 {[%emt 0:00:25]} 17. Be3 {[%emt 0:04:09]} Bb7 {[%emt 0:03:01]} 18. Rc1 {[%emt 0:02:04]} Qf6 {[%emt 0:08:14]} 19. Rc7 {[%emt 0:09:32]} Rab8 {[%emt 0:01:33]} 20. Nc3 {[%emt 0:02:58]} Qe6 {[%emt 0:20:00]} 21. Rxb7 {[%emt 0:18:16]} Rxb7 {[%emt 0:00:35]} 22. Bxd5 {[%emt 0:05:39]} Qd7 {[%emt 0:00:18]} 23. Bxb7 {[%emt 0:00:48]} Qxb7 {[%emt 0:00:03]} 24. Qd3 {[%emt 0:00:16]} b4 {[%emt 0:00:56]} 25. Qb5 {[%emt 0:04:07]} Qxb5 {[%emt 0:02:26]} 26. Nxb5 {[%emt 0:00:12]} Nxe3 {[%emt 0:00:03]} 27. fxe3 {[%emt 0:00:09]} Rxe3 {[%emt 0:00:17]} 28. Rd1 {[%emt 0:00:09]} Re7 {[%emt 0:01:52]} 29. Kf2 {[%emt 0:10:31]} Rd7 30. Ke3 a6 31. Nc3 bxc3 32. bxc3 Kf8 33. Rb1 Ke7 34. a4 Bf6 35. Ke4 h5 36. Rb6 Rd6 37. Rb7+ Ke6 38. Rb8 Bg7 39. Re8+ Kd7 40. Ra8 f5+ 41. Kd3 Ke6 42. Kc4 Rc6+ 43. Kd3 Bf6 44. c4 Rd6 45. d5+ Kf7 46. Ra7+ Kg8 47. Rb7 Bg7 48. Kc2 Be5 49. Kd3 Kf8 50. Ke3 Ke8 51. Kd3 h4 52. gxh4 Bxh2 53. Kd4 Rd7 54. Rb2 Bg1+ 55. Ke5 Re7+ 56. Kd6 Bd4 57. Rg2 f4 58. Rxg6 f3 0-1

[Event "Faroes Open 2018"]
[Site "Sandavagur"]
[Date "2018.07.14"]
[Round "9"]
[White "Hruby, Milan"]
[Black "Nielsen, Rogvi Egilstoft"]
[Result "1/2-1/2"]
[ECO "D35"]
[WhiteElo "2031"]
[BlackElo "2337"]
[Annotator "NA"]
[PlyCount "86"]
[EventDate "2018.07.07"]
[EventType "swiss"]
[EventCountry "FAI"]
[SourceTitle "playchess.com"]
[Source "ChessBase"]
[SourceQuality "1"]
[TimeControl "40/5400+30:900+30"]

1. d4 {[%emt 0:00:00]} Nf6 {[%emt 0:00:00]} 2. c4 {[%emt 0:00:41]} e6 {[%emt 0:00:11]} 3. Nc3 {[%emt 0:00:05]} d5 {[%emt 0:04:32]} 4. cxd5 {[%emt 0:00:19]} exd5 {[%emt 0:00:11]} 5. Bg5 {[%emt 0:00:07]} Be7 {[%emt 0:02:43]} 6. Qc2 {[%emt 0:03:17]} h6 {[%emt 0:01:52]} 7. Bh4 {[%emt 0:00:41]} O-O {[%emt 0:03:23]} 8. e3 {[%emt 0:00:05]} b6 {[%emt 0:00:45]} 9. Bd3 {[%emt 0:00:26]} Bb7 {[%emt 0:22:14]} 10. Nge2 {[%emt 0:13:00]} c5 {[%emt 0:00:28]} 11. O-O {[%emt 0:01:02]} Nc6 {[%emt 0:01:03]} 12. a3 {[%emt 0:03:15]} cxd4 {[%emt 0:04:16]} 13. exd4 {[%emt 0:06:57]} Re8 {[%emt 0:06:24]} 14. Rad1 {[%emt 0:04:31]} Na5 {[%emt 0:06:24]} 15. Bb5 {[%emt 0:32:16]} Rf8 {[%emt 0:02:10]} 16. Rfe1 {[%emt 0:02:35]} Rc8 {[%emt 0:03:20]} 17. Nc1 {[%emt 0:10:50]} a6 {[%emt 0:10:41]} 18. Bf1 {[%emt 0:02:03]} g5 {[%emt 0:04:18]} 19. Bg3 {[%emt 0:01:16]} Ne4 {[%emt 0:00:09]} 20. Nd3 {[%emt 0:02:41]} Bxa3 {[%emt 0:08:15]} 21. bxa3 Rxc3 22. Qe2 Nc4 23. Qh5 Qf6 24. Be5 Nxe5 25. dxe5 Qg6 26. Qxg6+ fxg6 27. f3 Nc5 28. Nb4 Rxa3 29. Nxd5 Bxd5 30. Rxd5 Kg7 31. Rd6 b5 32. Rc1 Nb3 33. Rcc6 Re8 34. Rxg6+ Kf7 35. Rxh6 Rxe5 36. Rxa6 Rxa6 37. Rxa6 Ke7 38. Ra3 Nd4 39. Kf2 Kd6 40. Ra1 Kc5 41. Rc1+ Kb4 42. g3 Rf5 43. Ke3 Nb3 1/2-1/2

[Event "Faroes Open 2018"]
[Site "Sandavagur"]
[Date "2018.07.14"]
[Round "9"]
[White "Fjallheim, Leif Reinert"]
[Black "Rodgaard, John"]
[Result "0-1"]
[ECO "B23"]
[WhiteElo "1886"]
[BlackElo "2319"]
[Annotator "NA"]
[PlyCount "78"]
[EventDate "2018.07.07"]
[EventType "swiss"]
[EventCountry "FAI"]
[SourceTitle "playchess.com"]
[Source "ChessBase"]
[SourceQuality "1"]
[TimeControl "40/5400+30:900+30"]

1. e4 {[%emt 0:09:45]} c5 {[%emt 0:00:06]} 2. Nc3 {[%emt 0:00:14]} Nc6 {[%emt 0:01:03]} 3. f4 {[%emt 0:02:23]} g6 {[%emt 0:03:55]} 4. Nf3 {[%emt 0:00:11]} Bg7 {[%emt 0:00:17]} 5. Bc4 {[%emt 0:03:33]} e6 {[%emt 0:01:43]} 6. d3 {[%emt 0:03:28]} Nge7 {[%emt 0:02:07]} 7. e5 {[%emt 0:09:41]} d5 {[%emt 0:22:11] B23: Closed Sicilian: Lines without g3} 8. exd6 {[%emt 0:02:10]} Nf5 {[%emt 0:02:12]} (8... Qxd6 9. O-O b6 10. Bd2 a6 11. Ne4 Qc7 12. Bc3 Nd4 13. a4 O-O 14. Nxd4 {½-½ (14) Lokander,M (2357)-Grishchenko,S (2417) Prague 2015}) 9. Ne4 {[%emt 0:06:59]} Nxd6 {[%emt 0:03:09]} 10. Nxd6+ {[%emt 0:03:29]} Qxd6 {[%emt 0:00:11]} 11. c3 {[%emt 0:02:57]} O-O {[%emt 0:04:18]} 12. O-O {[%emt 0:02:17]} Rd8 $146 {[%emt 0:06:32]} ({Predecessor:} 12... b6 13. Qe2 Bb7 14. Be3 Na5 15. Bb5 Bxf3 16. Rxf3 {0-1 (52) Korovin,I (2176)-Klyuev,A (2259) Moscow 2013}) 13. Ng5 {[%emt 0:07:21]} Na5 {[%emt 0:06:45]} 14. Ne4 {[%emt 0:02:02]} Qc7 {[%emt 0:05:16]} 15. Qg4 {[%emt 0:15:24]} f5 {[%emt 0:06:53]} 16. Qh3 {[%emt 0:03:27]} Nxc4 {[%emt 0:02:21]} 17. Ng5 {[%emt 0:02:04]} h6 {[%emt 0:00:28]} 18. dxc4 {[%emt 0:02:49]} hxg5 {[%emt 0:00:28]} 19. fxg5 {[%emt 0:03:09]} e5 {[%emt 0:00:43]} 20. Qf3 {[%emt 0:02:12]} Be6 {[%emt 0:04:40]} 21. Qe2 {[%emt 0:02:23]} Qd7 {[%emt 0:04:53]} 22. Be3 $19 {[%emt 0:03:16]} Qd3 {[%emt 0:01:11]} 23. Qf3 Bxc4 24. Rfd1 Qe2 25. Bxc5 e4 26. Rxd8+ Rxd8 27. Qxe2 Bxe2 28. Bxa7 Rd2 29. b3 f4 30. Bf2 Bxc3 31. Rc1 Rd1+ 32. Rxd1 Bxd1 33. Kf1 Kf7 34. g3 e3 35. Be1 Bxe1 36. Kxe1 fxg3 37. hxg3 Bf3 38. a4 Ke6 39. b4 Kd5 0-1

[Event "Faroes Open 2018"]
[Site "Sandavagur"]
[Date "2018.07.14"]
[Round "9"]
[White "Olsen, Kaj"]
[Black "Esteve Sanchez, Sergio"]
[Result "0-1"]
[ECO "B90"]
[WhiteElo "1696"]
[BlackElo "1994"]
[Annotator "NA"]
[PlyCount "76"]
[EventDate "2018.07.07"]
[EventType "swiss"]
[EventCountry "FAI"]
[SourceTitle "playchess.com"]
[Source "ChessBase"]
[SourceQuality "1"]
[TimeControl "40/5400+30:900+30"]

1. e4 {[%emt 0:00:00]} c5 {[%emt 0:00:00]} 2. Nf3 {[%emt 0:00:00]} d6 {[%emt 0:00:00]} 3. d4 {[%emt 0:00:00]} cxd4 {[%emt 0:00:00]} 4. Nxd4 {[%emt 0:00:05]} Nf6 {[%emt 0:00:00]} 5. Nc3 {[%emt 0:00:10]} a6 {[%emt 0:00:00]} 6. Be3 {[%emt 0:00:39]} e5 {[%emt 0:00:01]} 7. Nb3 {[%emt 0:01:04]} Be6 {[%emt 0:00:07]} 8. Be2 {[%emt 0:00:23]} Be7 {[%emt 0:00:08]} 9. O-O {[%emt 0:00:12]} Nbd7 {[%emt 0:00:07]} 10. f3 {[%emt 0:00:40]} b5 {[%emt 0:01:43]} 11. a3 {[%emt 0:01:19]} Rc8 {[%emt 0:01:52]} 12. Qd2 {[%emt 0:00:46]} Nb6 {[%emt 0:01:41]} 13. Rfd1 {[%emt 0:04:41]} O-O {[%emt 0:00:50]} 14. Kh1 {[%emt 0:01:33]} d5 {[%emt 0:02:54]} 15. Bxb6 {[%emt 0:01:21]} Qxb6 {[%emt 0:00:08]} 16. exd5 {[%emt 0:00:16]} Rfd8 {[%emt 0:01:50]} 17. Qg5 {[%emt 0:03:15]} Nxd5 {[%emt 0:02:09]} 18. Nxd5 {[%emt 0:03:48]} Bxg5 {[%emt 0:02:26]} 19. Nxb6 {[%emt 0:01:05]} Rxc2 {[%emt 0:00:28]} 20. Bd3 {[%emt 0:10:41]} Rc6 {[%emt 0:07:26]} 21. Na8 {[%emt 0:12:08]} Bxb3 {[%emt 0:07:50]} 22. Be4 {[%emt 0:00:06]} Rxd1+ {[%emt 0:04:09]} 23. Rxd1 {[%emt 0:00:11]} Bxd1 {[%emt 0:00:02]} 24. Bxc6 Bd8 {[%emt 0:05:02]} 25. b4 {[%emt 0:02:15]} Bb3 {[%emt 0:01:51]} 26. Kg1 {[%emt 0:00:42]} Kf8 {[%emt 0:00:35]} 27. Kf2 {[%emt 0:00:33]} Ke7 {[%emt 0:00:38]} 28. g4 {[%emt 0:00:15]} Kd6 {[%emt 0:00:39]} 29. Bb7 {[%emt 0:00:30]} a5 {[%emt 0:01:04]} 30. Ke3 {[%emt 0:00:18]} axb4 {[%emt 0:02:31]} 31. axb4 {[%emt 0:00:12]} Bd5 {[%emt 0:00:50]} 32. Bxd5 {[%emt 0:02:40]} Kxd5 {[%emt 0:00:13]} 33. h4 {[%emt 0:00:15]} Kc6 {[%emt 0:04:13]} 34. Ke4 {[%emt 0:00:13]} Bxh4 {[%emt 0:00:44]} 35. Kxe5 {[%emt 0:00:12]} Be1 {[%emt 0:00:26]} 36. Nb6 {[%emt 0:01:47]} Kxb6 {[%emt 0:00:19]} 37. Kd6 {[%emt 0:00:10]} Bxb4+ {[%emt 0:00:09]} 38. Kd7 {[%emt 0:00:10]} Bd2 {[%emt 0:00:29]} 0-1

[Event "Faroes Open 2018"]
[Site "Sandavagur"]
[Date "2018.07.14"]
[Round "9"]
[White "Gregersen, Einar"]
[Black "Haubro, Siv"]
[Result "1-0"]
[ECO "C79"]
[WhiteElo "1665"]
[BlackElo "1780"]
[Annotator "NA"]
[PlyCount "69"]
[EventDate "2018.07.07"]
[EventType "swiss"]
[EventCountry "FAI"]
[SourceTitle "playchess.com"]
[Source "ChessBase"]
[SourceQuality "1"]
[TimeControl "40/5400+30:900+30"]

1. e4 {[%emt 0:00:00]} e5 {[%emt 0:00:00]} 2. Nf3 {[%emt 0:00:00]} Nc6 {[%emt 0:00:00]} 3. Bb5 {[%emt 0:00:01]} a6 {[%emt 0:00:00]} 4. Ba4 {[%emt 0:00:09]} Nf6 {[%emt 0:00:24]} 5. O-O {[%emt 0:00:08]} d6 {[%emt 0:00:39]} 6. Re1 {[%emt 0:01:36]} b5 {[%emt 0:06:22]} 7. Bb3 {[%emt 0:00:07]} Na5 {[%emt 0:00:56]} 8. d4 {[%emt 0:07:28]} Nxb3 {[%emt 0:00:32]} 9. axb3 {[%emt 0:00:07]} exd4 {[%emt 0:05:52]} 10. e5 {[%emt 0:02:57]} dxe5 {[%emt 0:04:30]} 11. Rxe5+ {[%emt 0:08:20]} Be6 {[%emt 0:03:45]} 12. Ng5 {[%emt 0:13:57]} Qd7 {[%emt 0:10:29]} 13. Qe1 {[%emt 0:03:34]} Bd6 {[%emt 0:09:05]} 14. Nxe6 {[%emt 0:03:45]} fxe6 {[%emt 0:00:20]} 15. Rxe6+ {[%emt 0:00:13]} Kf7 {[%emt 0:00:07]} 16. Re2 {[%emt 0:01:02]} Rhe8 {[%emt 0:01:05]} 17. Bg5 {[%emt 0:07:28]} Ng4 {[%emt 0:04:51]} 18. h3 {[%emt 0:07:52]} Ne5 {[%emt 0:13:22]} 19. Nd2 {[%emt 0:04:05]} d3 {[%emt 0:09:22]} 20. Re3 {[%emt 0:08:59]} dxc2 {[%emt 0:01:59]} 21. Ne4 {[%emt 0:02:08]} Bf8 {[%emt 0:09:43]} 22. Rc1 {[%emt 0:02:27]} Rac8 {[%emt 0:05:39]} 23. Rxc2 {[%emt 0:01:59]} Kg8 {[%emt 0:01:15]} 24. Qe2 Qf5 25. g4 Qg6 26. Bf4 Nc6 27. Rd2 Qf7 28. Bg3 Nb4 29. h4 Nd5 30. Rxd5 Qxd5 31. Nf6+ gxf6 32. Rxe8 Qd7 33. Re6 Kf7 34. Rxa6 b4 35. Qe6+ 1-0

[Event "Faroes Open 2018"]
[Site "Sandavagur"]
[Date "2018.07.14"]
[Round "9"]
[White "Joensen, Hans Petur"]
[Black "Fruehauf, Norbert"]
[Result "1-0"]
[ECO "A10"]
[WhiteElo "1627"]
[BlackElo "1958"]
[Annotator "NA"]
[PlyCount "69"]
[EventDate "2018.07.07"]
[EventType "swiss"]
[EventCountry "FAI"]
[SourceTitle "playchess.com"]
[Source "ChessBase"]
[SourceQuality "1"]
[TimeControl "40/5400+30:900+30"]

1. c4 {[%emt 0:00:00]} d6 {[%emt 0:00:00]} 2. b3 {[%emt 0:00:09]} e5 {[%emt 0:00:38]} 3. g3 {[%emt 0:00:36]} Nf6 {[%emt 0:01:39]} 4. Bg2 {[%emt 0:01:09]} g6 {[%emt 0:00:25]} 5. e3 {[%emt 0:01:14]} Bg7 {[%emt 0:00:31]} 6. Ne2 {[%emt 0:00:51]} Nc6 {[%emt 0:00:59]} 7. Nbc3 {[%emt 0:01:33]} O-O {[%emt 0:00:21]} 8. O-O {[%emt 0:00:18]} Rb8 {[%emt 0:05:41]} 9. Bb2 {[%emt 0:04:37]} Bg4 {[%emt 0:04:32]} 10. h3 {[%emt 0:04:17]} Bf5 {[%emt 0:03:20]} 11. d4 {[%emt 0:05:27]} exd4 {[%emt 0:01:41]} 12. Nxd4 {[%emt 0:04:25]} Nxd4 {[%emt 0:00:50]} 13. exd4 {[%emt 0:00:24]} h5 {[%emt 0:01:52]} 14. Qd2 {[%emt 0:03:00]} Qd7 {[%emt 0:02:06]} 15. Kh2 {[%emt 0:00:13]} Kh7 {[%emt 0:09:29]} 16. Rae1 {[%emt 0:03:56]} Bh6 {[%emt 0:01:22]} 17. Qd1 {[%emt 0:04:04]} c6 {[%emt 0:09:15]} 18. d5 {[%emt 0:06:56]} c5 {[%emt 0:01:25]} 19. Re2 {[%emt 0:09:59]} Rfe8 {[%emt 0:03:46]} 20. Rfe1 {[%emt 0:01:42]} Rxe2 {[%emt 0:01:02]} 21. Rxe2 {[%emt 0:04:02]} a6 {[%emt 0:02:40]} 22. Qe1 {[%emt 0:01:55]} Re8 {[%emt 0:01:58]} 23. Ne4 {[%emt 0:15:33]} Nxe4 {[%emt 0:04:47]} 24. Bxe4 {[%emt 0:01:12]} Bxe4 {[%emt 0:01:51]} 25. Rxe4 {[%emt 0:00:18]} Rxe4 {[%emt 0:00:25]} 26. Qxe4 {[%emt 0:00:07]} Bg7 {[%emt 0:01:04]} 27. Bxg7 {[%emt 0:01:53]} Kxg7 {[%emt 0:00:03]} 28. a4 {[%emt 0:00:48]} Qd8 {[%emt 0:00:20]} 29. Kg2 {[%emt 0:00:37]} Qf6 {[%emt 0:00:26]} 30. h4 {[%emt 0:00:47]} Kf8 {[%emt 0:00:21]} 31. Qe3 {[%emt 0:01:05]} Qf5 {[%emt 0:02:30]} 32. Kh2 {[%emt 0:01:54]} Kg7 {[%emt 0:01:18]} 33. Kg2 {[%emt 0:00:08]} Kf6 {[%emt 0:01:10]} 34. Qf3 {[%emt 0:03:45]} Ke5 {[%emt 0:04:07]} 35. Qc3+ {[%emt 0:02:10]} 1-0

[Event "Faroes Open 2018"]
[Site "Sandavagur"]
[Date "2018.07.14"]
[Round "9"]
[White "Petersen, Gutti"]
[Black "Nielsen, Jon I Horni"]
[Result "1/2-1/2"]
[ECO "C68"]
[WhiteElo "1596"]
[BlackElo "1735"]
[Annotator "NA"]
[PlyCount "119"]
[EventDate "2018.07.07"]
[EventType "swiss"]
[EventCountry "FAI"]
[SourceTitle "playchess.com"]
[Source "ChessBase"]
[SourceQuality "1"]
[TimeControl "40/5400+30:900+30"]

1. e4 {[%emt 0:00:00]} e5 {[%emt 0:00:25]} 2. Nf3 {[%emt 0:00:00]} Nc6 {[%emt 0:02:17]} 3. Bb5 {[%emt 0:00:52]} a6 {[%emt 0:03:27]} 4. Bxc6 {[%emt 0:01:07]} dxc6 {[%emt 0:00:09]} 5. d3 {[%emt 0:00:10]} Bd6 {[%emt 0:00:51]} 6. Be3 {[%emt 0:00:16]} Ne7 {[%emt 0:00:48]} 7. d4 {[%emt 0:02:27]} Ng6 {[%emt 0:02:04]} 8. dxe5 {[%emt 0:01:52]} Nxe5 {[%emt 0:01:24]} 9. Nxe5 {[%emt 0:00:37]} Bxe5 {[%emt 0:00:19]} 10. Qxd8+ {[%emt 0:00:48]} Kxd8 {[%emt 0:02:36]} 11. c3 {[%emt 0:02:49]} Re8 {[%emt 0:01:02]} 12. O-O {[%emt 0:01:23]} Bd6 {[%emt 0:01:11]} 13. Nd2 {[%emt 0:00:54]} Be6 {[%emt 0:01:03]} 14. f4 {[%emt 0:05:49]} f6 {[%emt 0:01:37]} 15. b3 {[%emt 0:03:35]} Kd7 {[%emt 0:02:33]} 16. Rfe1 {[%emt 0:18:39]} Rad8 {[%emt 0:00:42]} 17. g3 {[%emt 0:03:23]} Kc8 {[%emt 0:00:14]} 18. Kg2 {[%emt 0:00:28]} Bc5 {[%emt 0:04:20]} 19. Kf3 {[%emt 0:20:43]} Rd3 {[%emt 0:00:36]} 20. Nf1 {[%emt 0:02:27]} Rxc3 {[%emt 0:02:43]} 21. Rac1 {[%emt 0:00:45]} Rxc1 {[%emt 0:00:22]} 22. Rxc1 {[%emt 0:00:03]} Bxe3 {[%emt 0:00:11]} 23. Nxe3 {[%emt 0:00:17]} Rd8 {[%emt 0:00:34]} 24. Rd1 {[%emt 0:00:11]} Rxd1 {[%emt 0:00:36]} 25. Nxd1 {[%emt 0:00:12]} h5 {[%emt 0:00:04]} 26. Ne3 {[%emt 0:01:43]} Kd7 {[%emt 0:00:27]} 27. f5 {[%emt 0:00:02]} Bf7 {[%emt 0:00:16]} 28. h3 {[%emt 0:00:00]} Kd6 {[%emt 0:00:13]} 29. g4 {[%emt 0:00:46]} hxg4+ {[%emt 0:00:22]} 30. hxg4 {[%emt 0:00:23]} Ke5 {[%emt 0:00:40]} 31. Nc2 {[%emt 0:02:26]} c5 {[%emt 0:00:05]} 32. Ke3 {[%emt 0:00:58]} Be8 {[%emt 0:00:24]} 33. Ne1 {[%emt 0:00:52]} Bc6 {[%emt 0:01:39]} 34. Nf3+ {[%emt 0:04:01]} Kd6 {[%emt 0:00:11]} 35. Kf4 {[%emt 0:00:43]} Ke7 {[%emt 0:02:01]} 36. g5 {[%emt 0:05:39]} b5 {[%emt 0:00:31]} 37. gxf6+ {[%emt 0:00:33]} gxf6 {[%emt 0:00:03]} 38. Nd2 {[%emt 0:00:24]} Kd6 {[%emt 0:00:56]} 39. Ke3 {[%emt 0:04:05]} Be8 {[%emt 0:01:12]} 40. Kf4 {[%emt 0:01:58]} Bf7 {[%emt 0:01:37]} 41. Ke3 {[%emt 0:16:06]} c6 {[%emt 0:15:37]} 42. Kd3 {[%emt 0:03:00]} c4+ {[%emt 0:01:59]} 43. bxc4 {[%emt 0:02:41]} bxc4+ {[%emt 0:00:02]} 44. Kc3 {[%emt 0:02:36]} c5 {[%emt 0:00:16]} 45. a3 {[%emt 0:02:51]} Ke5 {[%emt 0:00:11]} 46. a4 {[%emt 0:00:46]} a5 {[%emt 0:00:56]} 47. Nxc4+ {[%emt 0:01:02]} Bxc4 {[%emt 0:00:03]} 48. Kxc4 {[%emt 0:00:15]} Kxe4 {[%emt 0:00:08]} 49. Kxc5 {[%emt 0:00:14]} Kxf5 {[%emt 0:00:10]} 50. Kb5 {[%emt 0:00:01]} Ke5 {[%emt 0:00:14]} 51. Kxa5 {[%emt 0:00:03]} f5 {[%emt 0:00:12]} 52. Kb6 {[%emt 0:01:50]} f4 {[%emt 0:00:04]} 53. a5 {[%emt 0:00:24]} f3 {[%emt 0:00:01]} 54. a6 {[%emt 0:00:06]} f2 {[%emt 0:00:04]} 55. a7 {[%emt 0:00:21]} f1=Q {[%emt 0:00:11]} 56. a8=Q Qb1+ {[%emt 0:00:12]} 57. Kc7 {[%emt 0:01:25]} Qh7+ {[%emt 0:00:04]} 58. Kb6 {[%emt 0:00:43]} Qg6+ {[%emt 0:00:07]} 59. Qc6 {[%emt 0:01:08]} Qxc6+ {[%emt 0:00:19]} 60. Kxc6 {[%emt 0:00:28]} 1/2-1/2